fUSD/lending_fUSD_20250208
["ID","MTS","AMOUNT","RATE_DAILY","PERIOD"]
[352333358,1739044272192,-500.0,0.0001082,2]
[352333359,1739044272202,-1213.11,0.0001082,2]
[352333360,1739044272212,-500.0,0.0001082,2]
[352333361,1739044272222,-500.0,0.00010821,2]
[352333362,1739044272231,-500.0,0.00010821,2]
[352333363,1739044272240,-214.94685956,0.00010821,2]
[352333364,1739044272249,-343.90218743,0.00010821,2]
[352333365,1739044272259,-500.0,0.00010821,2]
[352333366,1739044272268,-500.0,0.00010821,2]
[352333367,1739044272277,-500.0,0.00010821,2]
[352333368,1739044272286,-500.0,0.00010821,2]
[352333369,1739044272296,-500.0,0.00010821,2]
[352333370,1739044272306,-288.06766098,0.00010821,2]
[352333371,1739044272316,-500.0,0.00010821,2]
[352333372,1739044272325,-547.98,0.00010821,2]
[352333373,1739044272335,-240.65736419,0.00010821,2]
[352333374,1739044272344,-500.0,0.00010821,2]
[352333375,1739044272354,-500.0,0.00010821,2]
[352333376,1739044272364,-500.0,0.00010821,2]
[352333377,1739044272374,-500.0,0.00010821,2]
[352333378,1739044272383,-500.0,0.00010821,2]
[352333379,1739044272394,-500.0,0.00010821,2]
[352333380,1739044272405,-500.0,0.00010821,2]
[352333381,1739044272414,-500.0,0.00010821,2]
[352333382,1739044272425,-500.0,0.00010821,2]
[352333383,1739044272436,-500.0,0.00010821,2]
[352333384,1739044272447,-500.0,0.00010821,2]
[352333385,1739044272457,-500.0,0.00010821,2]
[352333386,1739044272466,-986.57,0.00010821,2]
[352333387,1739044272475,-706.02,0.00010821,2]
[352333388,1739044272485,-500.0,0.00010821,2]
[352333389,1739044272495,-375.5,0.00010821,2]
[352333390,1739044272504,-500.0,0.00010821,2]
[352333391,1739044272515,-500.0,0.00010821,2]
[352333392,1739044272524,-500.0,0.00010821,2]
[352333393,1739044272535,-500.0,0.00010821,2]
[352333394,1739044272544,-500.0,0.00010821,2]
[352333395,1739044272554,-500.0,0.00010821,2]
[352333396,1739044272565,-500.0,0.00010821,2]
[352333397,1739044272575,-500.0,0.00010821,2]
[352333398,1739044272584,-904.65,0.00010821,2]
[352333399,1739044272594,-591.25,0.00010821,2]
[352333400,1739044272604,-740.96,0.00010821,2]
[352333401,1739044272614,-500.0,0.00010821,2]
[352333402,1739044272623,-244.60843742,0.00010821,2]
[352333403,1739044272633,-665.51,0.00010821,2]
[352333404,1739044272645,-850.96,0.00010821,2]
[352333405,1739044272654,-559.05,0.00010821,2]
[352333406,1739044272665,-773.74,0.00010821,2]
[352333407,1739044272675,-656.05,0.00010821,2]
[352333408,1739044272684,-500.0,0.00010821,2]
[352333409,1739044272694,-500.0,0.00010821,2]
[352333410,1739044272703,-664.06,0.00010821,2]
[352333411,1739044272713,-458.03677583,0.00010821,2]
[352333412,1739044272723,-500.0,0.00010821,2]
[352333413,1739044272736,-500.0,0.00010821,2]
[352333414,1739044272746,-500.0,0.00010821,2]
[352333415,1739044272757,-500.0,0.00010821,2]
[352333416,1739044272767,-500.0,0.00010821,2]
[352333417,1739044272777,-500.0,0.00010821,2]
[352333418,1739044272787,-724.27,0.00010821,2]
[352333419,1739044272796,-500.0,0.00010821,2]
[352333420,1739044272806,-500.0,0.00010821,2]
[352333421,1739044272817,-500.0,0.00010821,2]
[352333422,1739044272827,-571.91,0.00010821,2]
[352333423,1739044272837,-761.07,0.00010821,2]
[352333424,1739044272847,-500.0,0.00010821,2]
[352333425,1739044272856,-500.0,0.00010821,2]
[352333426,1739044272866,-500.0,0.00010821,2]
[352333427,1739044272875,-500.0,0.00010821,2]
[352333428,1739044272885,-500.0,0.00010821,2]
[352333429,1739044272895,-688.99,0.00010821,2]
[352333430,1739044272904,-766.21,0.00010821,2]
[352333431,1739044272915,-795.25,0.00010821,2]
[352333432,1739044272925,-815.13,0.00010821,2]
[352333433,1739044272934,-500.0,0.00010821,2]
[352333434,1739044272944,-500.0,0.00010821,2]
[352333435,1739044272954,-500.0,0.00010821,2]
[352333436,1739044272963,-500.0,0.00010821,2]
[352333437,1739044272972,-395.8873058,0.00010821,2]
[352333438,1739044272982,-500.0,0.00010821,2]
[352333439,1739044272993,-500.0,0.00010821,2]
[352333440,1739044273002,-805.97,0.00010821,2]
[352333441,1739044273012,-500.0,0.00010821,2]
[352333442,1739044273022,-500.0,0.00010821,2]
[352333443,1739044273033,-500.0,0.00010821,2]
[352333444,1739044273043,-500.0,0.00010821,2]
[352333445,1739044273053,-677.64,0.00010821,2]
[352333446,1739044273062,-500.0,0.00010821,2]
[352333447,1739044273072,-500.0,0.00010821,2]
[352333448,1739044273082,-500.0,0.00010821,2]
[352333449,1739044273092,-500.0,0.00010821,2]
[352333450,1739044273101,-500.0,0.00010821,2]
[352333451,1739044273110,-821.99,0.00010821,2]
[352333452,1739044273120,-500.0,0.00010821,2]
[352333453,1739044273129,-500.0,0.00010821,2]
[352333454,1739044273139,-796.32,0.00010821,2]
[352333455,1739044273148,-871.08,0.00010821,2]
[352333456,1739044273159,-534.02,0.00010821,2]
[352333457,1739044273168,-1557.15699106,0.00010824,2]
[352333458,1739044273178,-6671.08868526,0.00010828,2]
[352333459,1739044273190,-150.0,0.00010832,2]
[352333460,1739044273199,-150.0,0.00010835,2]
[352333461,1739044273209,-150.0,0.00010843,2]
[352333462,1739044273218,-22597.05588852,0.0001085,2]
[352333463,1739044273227,-6671.08868526,0.00010851,2]
[352333464,1739044273236,-325.56389233,0.00010858,2]
[352333465,1739044273247,-1794.70597357,0.0001086,2]
[352333466,1739044273257,-1431.85310354,0.00010863,2]
[352333467,1739044273268,-56466.51516777,0.00010865,2]
[352333468,1739044273278,-1386.83312684,0.00010867,2]
[352333469,1739044273288,-1702.88865395,0.00010868,2]
[352333470,1739044273298,-325.56389232,0.00010869,2]
[352333471,1739044273308,-200.0,0.00010869,2]
[352333472,1739044273319,-150.0,0.00010871,2]
[352333473,1739044273329,-1702.88865395,0.00010871,2]
[352333474,1739044273340,-3589.41194713,0.00010872,2]
[352333475,1739044273350,-150.0,0.00010873,2]
[352333476,1739044273359,-6671.08868526,0.00010873,2]
[352333477,1739044273370,-200.0,0.00010874,2]
[352333478,1739044273380,-2613.05062386,0.00010876,2]
[352333479,1739044273390,-1794.70597357,0.00010877,2]
[352333480,1739044273401,-150.0,0.00010878,2]
[352333481,1739044273411,-6671.08868526,0.00010879,2]
[352333482,1739044273422,-1386.83312684,0.00010879,2]
[352333483,1739044273431,-325.56389232,0.00010879,2]
[352333484,1739044273442,-200.0,0.00010885,2]
[352333485,1739044273451,-1386.83312684,0.00010887,2]
[352333486,1739044273461,-3589.41194713,0.00010889,2]
[352333487,1739044273471,-325.56389232,0.0001089,2]
[352333488,1739044273481,-3589.41194713,0.0001089,2]
[352333489,1739044273490,-1431.85310354,0.00010891,2]
[352333490,1739044273500,-200.0,0.00010891,2]
[352333491,1739044273509,-10184.4297832,0.00010891,2]
[352333492,1739044273519,-10184.4297832,0.00010891,2]
[352333493,1739044273530,-10184.4297832,0.00010891,2]
[352333494,1739044273541,-150.0,0.00010893,2]
[352333495,1739044273551,-150.0,0.00010893,2]
[352333496,1739044273560,-150.0,0.00010896,2]
[352333497,1739044273570,-2613.05062386,0.00010897,2]
[352333498,1739044273580,-207.48922038,0.00010898,2]
[352333499,1739044273590,-205.70751552,0.00010898,2]
[352333500,1739044273599,-350.31693392,0.00010898,2]
[352333501,1739044273609,-908.33553842,0.00010898,2]
[352333502,1739044273619,-56466.51516777,0.00010899,2]
[352333503,1739044273629,-205.70751552,0.00010899,2]
[352333504,1739044273639,-350.31693392,0.00010899,2]
[352333505,1739044273648,-908.33553841,0.00010899,2]
[352333506,1739044273657,-2000.0,0.000109,2]
[352333507,1739044273667,-2000.0,0.000109,2]
[352333508,1739044273677,-325.56389232,0.000109,2]
[352333509,1739044273687,-1557.15699106,0.000109,2]
[352333510,1739044273697,-172.97337172,0.000109,2]
[352333511,1739044273707,-2000.0,0.000109,2]
[352333512,1739044273716,-207.48922038,0.000109,2]
[352333513,1739044273726,-205.70751552,0.000109,2]
[352333514,1739044273741,-350.31693392,0.000109,2]
[352333515,1739044273751,-908.33553841,0.000109,2]
[352333516,1739044273760,-1000.0,0.0001091,2]
[352333517,1739044273770,-150.0,0.00010917,2]
[352333518,1739044273782,-150.0,0.00010926,2]
[352333519,1739044273792,-184.69,0.00010944,2]
[352333520,1739044273802,-796.993867,0.0001095,2]
[352333521,1739044273816,-150.0,0.00010952,2]
[352333522,1739044273827,-1517.94,0.00010955,2]
[352333523,1739044273836,-1328.1,0.00010955,2]
[352333524,1739044273848,-1378.83,0.00010955,2]
[352333525,1739044273859,-699.67,0.00010955,2]
[352333526,1739044273869,-1364.62,0.00010955,2]
[352333527,1739044273880,-1727.31,0.00010955,2]
[352333528,1739044273890,-4799.66,0.00010955,2]
[352333529,1739044273900,-902.26,0.00010955,2]
[352333530,1739044273912,-1251.59,0.00010955,2]
[352333531,1739044273921,-1266.98,0.00010955,2]
[352333532,1739044273932,-945.57,0.00010955,2]
[352333533,1739044273942,-1673.76,0.00010955,2]
[352333534,1739044273953,-500.0,0.00010955,2]
[352333535,1739044273963,-993.51,0.00010955,2]
[352333536,1739044273974,-1246.39,0.00010955,2]
[352333537,1739044273983,-1412.8,0.00010955,2]
[352333538,1739044273994,-1000.0,0.00010955,2]
[352333539,1739044274004,-887.01,0.00010955,2]
[352333540,1739044274013,-1185.97,0.00010955,2]
[352333541,1739044274023,-1288.61,0.00010955,2]
[352333542,1739044274032,-570.78,0.00010956,2]
[352333543,1739044274041,-500.0,0.00010956,2]
[352333544,1739044274051,-841.92,0.00010956,2]
[352333545,1739044274060,-500.0,0.00010956,2]
[352333546,1739044274070,-923.35,0.00010956,2]
[352333547,1739044274080,-900.97,0.00010956,2]
[352333548,1739044274090,-500.0,0.00010956,2]
[352333549,1739044274100,-500.0,0.00010956,2]
[352333550,1739044274110,-500.0,0.00010956,2]
[352333551,1739044274120,-963.35,0.00010956,2]
[352333552,1739044274130,-500.0,0.00010956,2]
[352333553,1739044274140,-500.0,0.00010956,2]
[352333554,1739044274149,-530.23,0.00010956,2]
[352333555,1739044274160,-568.95,0.00010956,2]
[352333556,1739044274170,-567.99,0.00010956,2]
[352333557,1739044274180,-722.24,0.00010956,2]
[352333558,1739044274190,-151.0,0.00010957,2]
[352333559,1739044274199,-907.64,0.00010957,2]
[352333560,1739044274209,-901.49,0.00010957,2]
[352333561,1739044274219,-500.0,0.00010957,2]
[352333562,1739044274230,-687.33,0.00010957,2]
[352333563,1739044274240,-500.0,0.00010957,2]
[352333564,1739044274250,-1014.06,0.00010957,2]
[352333565,1739044274262,-762.74,0.00010957,2]
[352333566,1739044274273,-500.0,0.00010957,2]
[352333567,1739044274283,-500.0,0.00010957,2]
[352333568,1739044274293,-500.0,0.00010957,2]
[352333569,1739044274304,-792.79,0.00010957,2]
[352333570,1739044274314,-500.0,0.00010957,2]
[352333571,1739044274323,-500.0,0.00010957,2]
[352333572,1739044274332,-500.0,0.00010957,2]
[352333573,1739044274342,-669.22,0.00010957,2]
[352333574,1739044274352,-151.0,0.00010957,2]
[352333575,1739044274361,-151.0,0.00010957,2]
[352333576,1739044274371,-500.0,0.00010957,2]
[352333577,1739044274380,-253.70334328,0.00010957,2]
[352333578,1739044274390,-1103.02,0.00010957,2]
[352333579,1739044274399,-500.0,0.00010957,2]
[352333580,1739044274409,-901.77,0.00010957,2]
[352333581,1739044274419,-1173.160634,0.00010957,2]
[352333582,1739044274429,-500.0,0.00010957,2]
[352333583,1739044274439,-301.64573231,0.00010957,2]
[352333584,1739044274449,-583.68,0.00010957,2]
[352333585,1739044274618,-942.5,0.00010957,2]
[352333586,1739044274629,-500.0,0.00010957,2]
[352333587,1739044274638,-500.0,0.00010957,2]
[352333588,1739044274647,-1064.071599,0.00010957,2]
[352333589,1739044274657,-897.19,0.00010957,2]
[352333590,1739044274666,-532.45,0.00010957,2]
[352333591,1739044274675,-500.0,0.00010957,2]
[352333592,1739044274685,-763.61,0.00010957,2]
[352333593,1739044274693,-500.0,0.00010957,2]
[352333594,1739044274702,-500.0,0.00010957,2]
[352333595,1739044274711,-977.4,0.00010957,2]
[352333596,1739044274720,-840.2,0.00010957,2]
[352333597,1739044274730,-674.41,0.00010957,2]
[352333598,1739044274742,-944.07,0.00010957,2]
[352333599,1739044274750,-500.0,0.00010957,2]
[352333600,1739044274759,-500.0,0.00010957,2]
[352333601,1739044274769,-706.28,0.00010957,2]
[352333602,1739044274778,-783.75,0.00010957,2]
[352333603,1739044274789,-500.0,0.00010957,2]
[352333604,1739044274799,-798.27,0.00010957,2]
[352333605,1739044274809,-500.0,0.00010957,2]
[352333606,1739044274819,-500.0,0.00010957,2]
[352333607,1739044274828,-815.84,0.00010957,2]
[352333608,1739044274837,-500.0,0.00010957,2]
[352333609,1739044274846,-808.49,0.00010957,2]
[352333610,1739044274855,-150.0,0.00010957,2]
[352333611,1739044274865,-500.0,0.00010957,2]
[352333612,1739044274873,-837.79,0.00010957,2]
[352333613,1739044274883,-1183.41,0.00010957,2]
[352333614,1739044274892,-676.71,0.00010957,2]
[352333615,1739044274901,-605.14,0.00010957,2]
[352333616,1739044274910,-500.0,0.00010957,2]
[352333617,1739044274920,-1618.91,0.00010957,2]
[352333618,1739044274929,-500.0,0.00010957,2]
[352333619,1739044274939,-500.0,0.00010957,2]
[352333620,1739044274948,-1150.74,0.00010957,2]
[352333621,1739044274957,-941.16,0.00010957,2]
[352333622,1739044274966,-669.83,0.00010957,2]
[352333623,1739044274976,-549.99,0.00010957,2]
[352333624,1739044274985,-1361.33,0.00010957,2]
[352333625,1739044274995,-561.18,0.00010957,2]
[352333626,1739044275004,-1366.38,0.00010957,2]
[352333627,1739044275013,-1015.97,0.00010957,2]
[352333628,1739044275022,-887.2,0.00010957,2]
[352333629,1739044275031,-1834.05,0.00010957,2]
[352333630,1739044275040,-849.57,0.00010957,2]
[352333631,1739044275050,-533.09,0.00010957,2]
[352333632,1739044275059,-797.41,0.00010957,2]
[352333633,1739044275069,-739.56,0.00010957,2]
[352333634,1739044275078,-979.64,0.00010957,2]
[352333635,1739044275087,-500.0,0.00010957,2]
[352333636,1739044275097,-962.16,0.00010957,2]
[352333637,1739044275106,-887.97,0.00010957,2]
[352333638,1739044275115,-1057.42,0.00010957,2]
[352333639,1739044275125,-905.82,0.00010957,2]
[352333640,1739044275134,-2314.12,0.00010957,2]
[352333641,1739044275142,-500.0,0.00010957,2]
[352333642,1739044275152,-1142.98,0.00010957,2]
[352333643,1739044275161,-500.0,0.00010957,2]
[352333644,1739044275170,-500.0,0.00010957,2]
[352333645,1739044275179,-829.5,0.00010957,2]
[352333646,1739044275189,-1329.11,0.00010957,2]
[352333647,1739044275198,-1595.23,0.00010957,2]
[352333648,1739044275207,-795.37,0.00010957,2]
[352333649,1739044275216,-1702.34,0.00010957,2]
[352333650,1739044275226,-826.46,0.00010957,2]
[352333651,1739044275237,-1972.13,0.00010957,2]
[352333652,1739044275246,-1406.55,0.00010957,2]
[352333653,1739044275256,-1923.12,0.00010957,2]
[352333654,1739044275266,-567.99,0.00010957,2]
[352333655,1739044275276,-1484.2,0.00010957,2]
[352333656,1739044275287,-1114.76,0.00010957,2]
[352333657,1739044275296,-1965.75,0.00010957,2]
[352333658,1739044275305,-646.74,0.00010957,2]
[352333659,1739044275315,-4307.64,0.00010957,2]
[352333660,1739044275324,-500.0,0.00010957,2]
[352333661,1739044275334,-1142.04,0.00010957,2]
[352333662,1739044275344,-500.0,0.00010957,2]
[352333663,1739044275353,-1348.55,0.00010957,2]
[352333664,1739044275363,-640.77,0.00010957,2]
[352333665,1739044275372,-704.02,0.00010957,2]
[352333666,1739044275381,-152.97498,0.00010957,2]
[352333667,1739044275391,-1125.13,0.00010957,2]
[352333668,1739044275400,-1470.38,0.00010957,2]
[352333669,1739044275410,-500.0,0.00010957,2]
[352333670,1739044275419,-1284.44,0.00010957,2]
[352333671,1739044275429,-500.0,0.00010957,2]
[352333672,1739044275438,-1869.63,0.00010957,2]
[352333673,1739044275448,-1535.34,0.00010957,2]
[352333674,1739044275457,-428.86427346,0.00010957,2]
[352333675,1739044275467,-1897.47,0.00010957,2]
[352333676,1739044275476,-1490.63,0.00010957,2]
[352333677,1739044275486,-785.41,0.00010957,2]
[352333678,1739044275495,-2078.2,0.00010957,2]
[352333679,1739044275505,-500.0,0.00010957,2]
[352333680,1739044275514,-2749.9,0.00010957,2]
[352333681,1739044275523,-933.1,0.00010957,2]
[352333682,1739044275532,-1000.73,0.00010957,2]
[352333683,1739044275542,-592.37,0.00010957,2]
[352333684,1739044275552,-1940.13,0.00010957,2]
[352333685,1739044275563,-940.46,0.00010957,2]
[352333686,1739044275572,-998.39,0.00010957,2]
[352333687,1739044275582,-1136.94,0.00010957,2]
[352333688,1739044275592,-1883.61,0.00010957,2]
[352333689,1739044275602,-2982.03,0.00010957,2]
[352333690,1739044275612,-500.0,0.00010957,2]
[352333691,1739044275622,-979.73,0.00010957,2]
[352333692,1739044275633,-1184.77,0.00010957,2]
[352333693,1739044275643,-1359.57,0.00010957,2]
[352333694,1739044275653,-1301.55,0.00010957,2]
[352333695,1739044275662,-621.86,0.00010957,2]
[352333696,1739044275671,-419.06278396,0.00010957,2]
[352333697,1739044275680,-2322.33,0.00010957,2]
[352333698,1739044275690,-906.62,0.00010957,2]
[352333699,1739044275699,-1695.52,0.00010957,2]
[352333700,1739044275708,-844.38,0.00010957,2]
[352333701,1739044275718,-1042.66,0.00010957,2]
[352333702,1739044275727,-500.0,0.00010957,2]
[352333703,1739044275744,-760.67,0.00010957,2]
[352333704,1739044275753,-500.0,0.00010957,2]
[352333705,1739044275762,-1340.43,0.00010957,2]
[352333706,1739044275771,-654.47,0.00010957,2]
[352333707,1739044275781,-953.62,0.00010957,2]
[352333708,1739044275791,-2313.29,0.00010957,2]
[352333709,1739044275800,-512.16,0.00010957,2]
[352333710,1739044275811,-500.0,0.00010957,2]
[352333711,1739044275820,-1681.63,0.00010957,2]
[352333712,1739044275829,-500.0,0.00010957,2]
[352333713,1739044275839,-1213.11,0.00010957,2]
[352333714,1739044275849,-500.0,0.00010957,2]
[352333715,1739044275858,-500.0,0.00010958,2]
[352333716,1739044275867,-500.0,0.00010958,2]
[352333717,1739044275877,-500.0,0.00010958,2]
[352333718,1739044275886,-500.0,0.00010958,2]
[352333719,1739044275896,-500.0,0.00010958,2]
[352333720,1739044275905,-500.0,0.00010958,2]
[352333721,1739044275915,-500.0,0.00010958,2]
[352333722,1739044275927,-500.0,0.00010958,2]
[352333723,1739044275938,-547.98,0.00010958,2]
[352333724,1739044275947,-500.0,0.00010958,2]
[352333725,1739044275957,-500.0,0.00010958,2]
[352333726,1739044275967,-500.0,0.00010958,2]
[352333727,1739044275977,-500.0,0.00010958,2]
[352333728,1739044275987,-500.0,0.00010958,2]
[352333729,1739044275998,-500.0,0.00010958,2]
[352333730,1739044276008,-500.0,0.00010958,2]
[352333731,1739044276017,-500.0,0.00010958,2]
[352333732,1739044276026,-500.0,0.00010958,2]
[352333733,1739044276036,-500.0,0.00010958,2]
[352333734,1739044276045,-500.0,0.00010958,2]
[352333735,1739044276055,-986.57,0.00010958,2]
[352333736,1739044276065,-706.02,0.00010958,2]
[352333737,1739044276075,-500.0,0.00010958,2]
[352333738,1739044276084,-500.0,0.00010958,2]
[352333739,1739044276093,-500.0,0.00010958,2]
[352333740,1739044276102,-500.0,0.00010958,2]
[352333741,1739044276111,-500.0,0.00010958,2]
[352333742,1739044276122,-500.0,0.00010958,2]
[352333743,1739044276132,-500.0,0.00010958,2]
[352333744,1739044276141,-500.0,0.00010958,2]
[352333745,1739044276152,-583.846615,0.00010958,2]
[352333746,1739044276161,-904.65,0.00010958,2]
[352333747,1739044276170,-591.25,0.00010958,2]
[352333748,1739044276180,-740.96,0.00010958,2]
[352333749,1739044276190,-500.0,0.00010958,2]
[352333750,1739044276200,-665.51,0.00010958,2]
[352333751,1739044276210,-850.96,0.00010958,2]
[352333752,1739044276219,-559.05,0.00010958,2]
[352333753,1739044276229,-773.74,0.00010958,2]
[352333754,1739044276239,-656.05,0.00010958,2]
[352333755,1739044276248,-500.0,0.00010958,2]
[352333756,1739044276257,-500.0,0.00010958,2]
[352333757,1739044276266,-664.06,0.00010958,2]
[352333758,1739044276275,-500.0,0.00010958,2]
[352333759,1739044276285,-500.0,0.00010958,2]
[352333760,1739044276295,-500.0,0.00010958,2]
[352333761,1739044276305,-500.0,0.00010958,2]
[352333762,1739044276315,-500.0,0.00010958,2]
[352333763,1739044276324,-441.79478792,0.00010958,2]
[352333764,1739044276333,-724.27,0.00010958,2]
[352333765,1739044276342,-500.0,0.00010958,2]
[352333766,1739044276351,-500.0,0.00010958,2]
[352333767,1739044276360,-500.0,0.00010958,2]
[352333768,1739044276369,-571.91,0.00010958,2]
[352333769,1739044276378,-761.07,0.00010958,2]
[352333770,1739044276388,-500.0,0.00010958,2]
[352333771,1739044276398,-500.0,0.00010958,2]
[352333772,1739044276407,-500.0,0.00010958,2]
[352333773,1739044276416,-500.0,0.00010958,2]
[352333774,1739044276425,-500.0,0.00010958,2]
[352333775,1739044276435,-688.99,0.00010958,2]
[352333776,1739044276443,-766.21,0.00010958,2]
[352333777,1739044276453,-795.25,0.00010958,2]
[352333778,1739044276463,-815.13,0.00010958,2]
[352333779,1739044276472,-500.0,0.00010958,2]
[352333780,1739044276481,-500.0,0.00010958,2]
[352333781,1739044276490,-500.0,0.00010958,2]
[352333782,1739044276500,-500.0,0.00010958,2]
[352333783,1739044276510,-500.0,0.00010958,2]
[352333784,1739044276519,-805.97,0.00010958,2]
[352333785,1739044276528,-500.0,0.00010958,2]
[352333786,1739044276537,-500.0,0.00010958,2]
[352333787,1739044276547,-500.0,0.00010958,2]
[352333788,1739044276557,-612.11537017,0.00010958,2]
[352333789,1739044276567,-677.64,0.00010958,2]
[352333790,1739044276577,-500.0,0.00010958,2]
[352333791,1739044276588,-500.0,0.00010958,2]
[352333792,1739044276598,-500.0,0.00010958,2]
[352333793,1739044276608,-500.0,0.00010958,2]
[352333794,1739044276619,-500.0,0.00010958,2]
[352333795,1739044276629,-821.99,0.00010958,2]
[352333796,1739044276638,-500.0,0.00010958,2]
[352333797,1739044276648,-500.0,0.00010958,2]
[352333798,1739044276657,-796.32,0.00010958,2]
[352333799,1739044276666,-871.08,0.00010958,2]
[352333800,1739044276675,-534.02,0.00010958,2]
[352333801,1739044276685,-151.0,0.00010959,2]
[352333802,1739044276695,-151.0,0.00010959,2]
[352333803,1739044276704,-263.846749,0.00010959,2]
[352333804,1739044276713,-150.0,0.00010959,2]
[352333805,1739044276723,-1300.0,0.0001096,2]
[352333806,1739044276737,-211.63753561,0.00010973,2]
[352333807,1739044276748,-500.56523456,0.00010973,2]
[352333808,1739044276758,-162.32591162,0.00010973,2]
[352333809,1739044276768,-501.55684478,0.00010973,2]
[352333810,1739044276779,-500.0,0.00010973,2]
[352333811,1739044276788,-665.9425309,0.00010979,2]
[352333812,1739044276797,-1245.851194,0.00010979,2]
[352333813,1739044276807,-3665.5201357,0.00010979,2]
[352333814,1739044276817,-150.0,0.00010986,2]
[352333815,1739044276827,-914.19409031,0.00010988,2]
[352333816,1739044276836,-549.99,0.00010989,2]
[352333817,1739044276846,-248.47650238,0.00010989,2]
[352333818,1739044276855,-150.0,0.00010989,2]
[352333819,1739044276864,-882.0,0.00010989,2]
[352333820,1739044276873,-250000.0,0.0001099,2]
[352333821,1739044276882,-151.0,0.0001099,2]
[352333822,1739044276890,-151.0,0.0001099,2]
[352333823,1739044276899,-151.0,0.0001099,2]
[352333824,1739044276908,-151.0,0.0001099,2]
[352333825,1739044276917,-151.0,0.0001099,2]
[352333826,1739044276926,-151.0,0.0001099,2]
[352333827,1739044276935,-151.0,0.0001099,2]
[352333828,1739044276943,-151.0,0.0001099,2]
[352333829,1739044276952,-151.0,0.0001099,2]
[352333830,1739044276961,-151.0,0.0001099,2]
[352333831,1739044276970,-151.0,0.0001099,2]
[352333832,1739044276980,-151.0,0.0001099,2]
[352333833,1739044276990,-151.0,0.0001099,2]
[352333834,1739044276999,-151.0,0.0001099,2]
[352333835,1739044277008,-151.0,0.0001099,2]
[352333836,1739044277019,-151.0,0.0001099,2]
[352333837,1739044277028,-151.0,0.0001099,2]
[352333838,1739044277039,-151.0,0.0001099,2]
[352333839,1739044277049,-151.0,0.0001099,2]
[352333840,1739044277059,-151.0,0.0001099,2]
[352333841,1739044277069,-151.0,0.0001099,2]
[352333842,1739044277079,-151.0,0.0001099,2]
[352333843,1739044277088,-151.0,0.0001099,2]
[352333844,1739044277098,-151.0,0.0001099,2]
[352333845,1739044277108,-151.0,0.0001099,2]
[352333846,1739044277118,-151.0,0.0001099,2]
[352333847,1739044277128,-151.0,0.0001099,2]
[352333848,1739044277138,-151.0,0.0001099,2]
[352333849,1739044277147,-151.0,0.0001099,2]
[352333850,1739044277157,-151.0,0.0001099,2]
[352333851,1739044277167,-151.0,0.0001099,2]
[352333852,1739044277177,-151.0,0.0001099,2]
[352333853,1739044277187,-151.0,0.0001099,2]
[352333854,1739044277196,-151.0,0.0001099,2]
[352333855,1739044277207,-151.0,0.0001099,2]
[352333856,1739044277216,-151.0,0.0001099,2]
[352333857,1739044277225,-151.0,0.0001099,2]